[Event "*** Titled Tuesday Blitz"]
[Site "Chess.com"]
[Date "2020.05.26"]
[Round "3"]
[White "DaggiGretarsson"]
[Black "elisak43"]
[Result "1-0"]
[WhiteElo "2617"]
[BlackElo "2405"]
[TimeControl "180+1"]
[EndTime "10:29:01 PDT"]
[Termination "DaggiGretarsson won on time"]

1. d4 {[%clk 0:03:00.6]} 1... Nf6 {[%clk 0:02:55.7]} 2. c4 {[%clk 0:03:00.4]}
2... e6 {[%clk 0:02:55.9]} 3. Nf3 {[%clk 0:02:59.2]} 3... Bb4+ {[%clk
0:02:55.9]} 4. Bd2 {[%clk 0:02:57.4]} 4... Be7 {[%clk 0:02:53.9]} 5. Nc3 {[%clk
0:02:54.8]} 5... O-O {[%clk 0:02:54.1]} 6. e4 {[%clk 0:02:51.4]} 6... d6 {[%clk
0:02:51.6]} 7. Bd3 {[%clk 0:02:48.7]} 7... e5 {[%clk 0:02:43.1]} 8. h3 {[%clk
0:02:43.7]} 8... Nc6 {[%clk 0:02:39.3]} 9. d5 {[%clk 0:02:42.8]} 9... Nb4 {[%clk
0:02:39.6]} 10. Bb1 {[%clk 0:02:36]} 10... a5 {[%clk 0:02:24.7]} 11. a3 {[%clk
0:02:34.8]} 11... Na6 {[%clk 0:02:24.8]} 12. Bc2 {[%clk 0:02:34.4]} 12... g6
{[%clk 0:01:32.9]} 13. Bh6 {[%clk 0:01:55.2]} 13... Re8 {[%clk 0:01:32.6]} 14.
g4 {[%clk 0:01:54.9]} 14... Bf8 {[%clk 0:01:14.9]} 15. Be3 {[%clk 0:01:53.6]}
15... Nd7 {[%clk 0:01:07.7]} 16. b3 {[%clk 0:01:37]} 16... Ndc5 {[%clk
0:01:03.6]} 17. Qe2 {[%clk 0:01:33.6]} 17... Bg7 {[%clk 0:00:58.4]} 18. Nd2
{[%clk 0:01:23.7]} 18... Kh8 {[%clk 0:00:25.2]} 19. O-O-O {[%clk 0:01:10.8]}
19... Bd7 {[%clk 0:00:21.4]} 20. h4 {[%clk 0:01:09.6]} 20... Nb4 {[%clk
0:00:20.3]} 21. axb4 {[%clk 0:01:06.7]} 21... axb4 {[%clk 0:00:20.9]} 22. Ncb1
{[%clk 0:01:06.4]} 22... Ra1 {[%clk 0:00:19.9]} 23. Bxc5 {[%clk 0:00:58.3]}
23... dxc5 {[%clk 0:00:18.2]} 24. Nf1 {[%clk 0:00:58.3]} 24... Qa8 {[%clk
0:00:12.9]} 25. Ne3 {[%clk 0:00:53.2]} 25... b5 {[%clk 0:00:07.3]} 26. g5 {[%clk
0:00:38.7]} 26... bxc4 {[%clk 0:00:06.9]} 27. Nxc4 {[%clk 0:00:38.7]} 27... Bb5
{[%clk 0:00:06.8]} 28. h5 {[%clk 0:00:37.6]} 28... Qa2 {[%clk 0:00:05.5]} 29.
Qd3 {[%clk 0:00:34.4]} 29... Kg8 {[%clk 0:00:03.5]} 30. Kd2 {[%clk 0:00:31.2]}
30... Ra8 {[%clk 0:00:03.2]} 31. Ke3 {[%clk 0:00:30.4]} 31... Qa7 {[%clk
0:00:02.9]} 32. Kf3 {[%clk 0:00:29.4]} 32... Ra2 {[%clk 0:00:03.5]} 33. Kg2
{[%clk 0:00:28.8]} 33... c6 {[%clk 0:00:03.9]} 34. d6 {[%clk 0:00:28.1]} 34...
Qd7 {[%clk 0:00:04.4]} 35. Kg3 {[%clk 0:00:24]} 35... Qe6 {[%clk 0:00:04.1]} 36.
d7 {[%clk 0:00:22.9]} 36... Rd8 {[%clk 0:00:03.7]} 37. Rd2 {[%clk 0:00:20.7]}
37... Ra7 {[%clk 0:00:03.9]} 38. Rhd1 {[%clk 0:00:19.6]} 38... gxh5 {[%clk
0:00:03.4]} 39. f3 {[%clk 0:00:18.1]} 39... h4+ {[%clk 0:00:03.4]} 40. Kh2
{[%clk 0:00:18]} 40... h6 {[%clk 0:00:04.3]} 41. Qd6 {[%clk 0:00:17]} 41... hxg5
{[%clk 0:00:04.4]} 42. Qxe6 {[%clk 0:00:16.6]} 42... fxe6 {[%clk 0:00:05.3]} 43.
Rd6 {[%clk 0:00:15.2]} 43... Bxc4 {[%clk 0:00:05.5]} 44. bxc4 {[%clk 0:00:14.8]}
44... Bf8 {[%clk 0:00:06.4]} 45. Rxe6 {[%clk 0:00:14.3]} 45... Raxd7 {[%clk
0:00:06.6]} 46. Rg6+ {[%clk 0:00:14.3]} 46... Kf7 {[%clk 0:00:06.1]} 47. Rxd7+
{[%clk 0:00:13.8]} 47... Rxd7 {[%clk 0:00:06.8]} 48. Rxg5 {[%clk 0:00:14.2]}
48... Rd4 {[%clk 0:00:06]} 49. Rh5 {[%clk 0:00:13]} 49... Kg6 {[%clk 0:00:04.8]}
50. Rf5 {[%clk 0:00:12.4]} 50... Bd6 {[%clk 0:00:04.7]} 51. Kh3 {[%clk
0:00:11.8]} 51... Rxc4 {[%clk 0:00:04.7]} 52. Ba4 {[%clk 0:00:11.8]} 52... Rc1
{[%clk 0:00:05.3]} 53. Nd2 {[%clk 0:00:11.8]} 53... Rh1+ {[%clk 0:00:05.6]} 54.
Kg4 {[%clk 0:00:11.4]} 54... Rg1+ {[%clk 0:00:05.4]} 55. Kh3 {[%clk 0:00:11.7]}
55... Be7 {[%clk 0:00:05.6]} 56. Rxe5 {[%clk 0:00:11.1]} 56... Rg3+ {[%clk
0:00:05]} 57. Kh2 {[%clk 0:00:10.8]} 57... Kf6 {[%clk 0:00:05.3]} 58. Rf5+
{[%clk 0:00:10.7]} 58... Ke6 {[%clk 0:00:05.5]} 59. Bb3+ {[%clk 0:00:10.5]}
59... Kd7 {[%clk 0:00:05.1]} 60. Nc4 {[%clk 0:00:10.4]} 60... Rg6 {[%clk
0:00:03.2]} 61. Ne5+ {[%clk 0:00:09.9]} 61... Kc7 {[%clk 0:00:02.3]} 62. Nxg6
{[%clk 0:00:09.9]} 1-0

[Event "*** Titled Tuesday Blitz"]
[Site "Chess.com"]
[Date "2020.05.26"]
[Round "3"]
[White "Susal_De_Silva"]
[Black "Mikhal867"]
[Result "1/2-1/2"]
[WhiteElo "2385"]
[BlackElo "2160"]
[TimeControl "180+1"]
[EndTime "10:29:03 PDT"]
[Termination "Game drawn by repetition"]

1. e4 {[%clk 0:03:00.9]} 1... g6 {[%clk 0:02:56.3]} 2. d4 {[%clk 0:03:00.6]}
2... Bg7 {[%clk 0:02:56.4]} 3. Nc3 {[%clk 0:03:00.7]} 3... d6 {[%clk 0:02:56.6]}
4. Be3 {[%clk 0:03:01.3]} 4... a6 {[%clk 0:02:56.1]} 5. h4 {[%clk 0:03:01.3]}
5... h5 {[%clk 0:02:52.4]} 6. Qd2 {[%clk 0:03:00.9]} 6... Nf6 {[%clk 0:02:47]}
7. f3 {[%clk 0:03:00.4]} 7... b5 {[%clk 0:02:45.8]} 8. Nce2 {[%clk 0:02:56.7]}
8... Nc6 {[%clk 0:02:42.4]} 9. Nh3 {[%clk 0:02:53.4]} 9... Bxh3 {[%clk
0:02:40.3]} 10. Rxh3 {[%clk 0:02:52.6]} 10... Nd7 {[%clk 0:02:38]} 11. O-O-O
{[%clk 0:02:51.2]} 11... Nb6 {[%clk 0:02:33.7]} 12. Nf4 {[%clk 0:02:48.8]} 12...
e5 {[%clk 0:02:29.2]} 13. Nd5 {[%clk 0:02:46.1]} 13... Nxd5 {[%clk 0:02:27.1]}
14. exd5 {[%clk 0:02:45.1]} 14... Nxd4 {[%clk 0:02:25.9]} 15. Bxd4 {[%clk
0:02:45.1]} 15... exd4 {[%clk 0:02:26]} 16. Re1+ {[%clk 0:02:45.8]} 16... Kf8
{[%clk 0:02:20]} 17. Bd3 {[%clk 0:02:38.8]} 17... Qf6 {[%clk 0:02:15.9]} 18. Qa5
{[%clk 0:02:24.8]} 18... Bh6+ {[%clk 0:02:13.5]} 19. Kb1 {[%clk 0:02:23]} 19...
Qd8 {[%clk 0:02:07.2]} 20. g4 {[%clk 0:02:21.6]} 20... Bf4 {[%clk 0:02:00.9]}
21. Re4 {[%clk 0:02:17.4]} 21... Be3 {[%clk 0:01:54.6]} 22. g5 {[%clk
0:02:07.7]} 22... Kg7 {[%clk 0:01:52.3]} 23. f4 {[%clk 0:02:05.4]} 23... Re8
{[%clk 0:01:45.4]} 24. f5 {[%clk 0:02:03.7]} 24... Rxe4 {[%clk 0:01:39.1]} 25.
Bxe4 {[%clk 0:01:59.6]} 25... c5 {[%clk 0:01:36.7]} 26. Qe1 {[%clk 0:01:49.1]}
26... Qe8 {[%clk 0:01:33.6]} 27. Bd3 {[%clk 0:01:49.1]} 27... c4 {[%clk
0:01:30.6]} 28. Bf1 {[%clk 0:01:46.9]} 28... Qe5 {[%clk 0:01:29.5]} 29. Rf3
{[%clk 0:01:39.8]} 29... Re8 {[%clk 0:01:22.8]} 30. a4 {[%clk 0:01:23.3]} 30...
Qxd5 {[%clk 0:01:13.5]} 31. Bg2 {[%clk 0:01:20.7]} 31... Qe5 {[%clk 0:01:09.5]}
32. Qf1 {[%clk 0:01:09.1]} 32... Bd2 {[%clk 0:00:34.8]} 33. fxg6 {[%clk
0:01:00.7]} 33... Qe1+ {[%clk 0:00:33.9]} 34. Ka2 {[%clk 0:01:00.3]} 34... Qxf1
{[%clk 0:00:33.6]} 35. Rxf1 {[%clk 0:01:00.5]} 35... fxg6 {[%clk 0:00:33.6]} 36.
Rf6 {[%clk 0:01:00.6]} 36... Bb4 {[%clk 0:00:27.1]} 37. Bc6 {[%clk 0:00:45.1]}
37... Re2 {[%clk 0:00:26.1]} 38. axb5 {[%clk 0:00:28.1]} 38... axb5 {[%clk
0:00:25.8]} 39. Bxb5 {[%clk 0:00:28.2]} 39... Rxc2 {[%clk 0:00:25]} 40. Kb1
{[%clk 0:00:25.7]} 40... Rh2 {[%clk 0:00:21.8]} 41. Bxc4 {[%clk 0:00:24.3]}
41... Rxh4 {[%clk 0:00:21.4]} 42. Bd3 {[%clk 0:00:24.7]} 42... Rh1+ {[%clk
0:00:20.4]} 43. Ka2 {[%clk 0:00:24.3]} 43... h4 {[%clk 0:00:20.1]} 44. Rxg6+
{[%clk 0:00:24.2]} 44... Kf7 {[%clk 0:00:20.3]} 45. Rh6 {[%clk 0:00:24.6]} 45...
h3 {[%clk 0:00:20]} 46. g6+ {[%clk 0:00:25]} 46... Kf6 {[%clk 0:00:19.4]} 47.
Rh7 {[%clk 0:00:23.7]} 47... h2 {[%clk 0:00:15.3]} 48. Kb3 {[%clk 0:00:22.1]}
48... Bc5 {[%clk 0:00:14.9]} 49. Rf7+ {[%clk 0:00:11.9]} 49... Ke6 {[%clk
0:00:12.9]} 50. Rh7 {[%clk 0:00:07.6]} 50... Kf6 {[%clk 0:00:12.7]} 51. Rf7+
{[%clk 0:00:06.4]} 51... Ke6 {[%clk 0:00:12.5]} 52. Rh7 {[%clk 0:00:06.6]} 52...
Kf6 {[%clk 0:00:12.6]} 1/2-1/2

[Event "*** Titled Tuesday Blitz"]
[Site "Chess.com"]
[Date "2020.05.26"]
[Round "3"]
[White "ClassyEl"]
[Black "Makswolf200817"]
[Result "1-0"]
[WhiteElo "2605"]
[BlackElo "2402"]
[TimeControl "180+1"]
[EndTime "10:29:06 PDT"]
[Termination "ClassyEl won by resignation"]

1. d4 {[%clk 0:03:00.9]} 1... d5 {[%clk 0:02:58.6]} 2. Bf4 {[%clk 0:03:00.7]}
2... Bf5 {[%clk 0:02:57.2]} 3. e3 {[%clk 0:03:00.9]} 3... e6 {[%clk 0:02:57]} 4.
c4 {[%clk 0:03:01.1]} 4... c6 {[%clk 0:02:47.3]} 5. Qb3 {[%clk 0:03:00.8]} 5...
Bxb1 {[%clk 0:02:27.3]} 6. Rxb1 {[%clk 0:02:55.2]} 6... Qa5+ {[%clk 0:02:26.6]}
7. Kd1 {[%clk 0:02:52.3]} 7... Qb6 {[%clk 0:02:00.8]} 8. c5 {[%clk 0:02:50.5]}
8... Qxb3+ {[%clk 0:02:00.7]} 9. axb3 {[%clk 0:02:51.4]} 9... a6 {[%clk
0:01:59.3]} 10. b4 {[%clk 0:02:51.1]} 10... Nd7 {[%clk 0:01:59]} 11. Ra1 {[%clk
0:02:50.7]} 11... Rd8 {[%clk 0:01:56.8]} 12. Nf3 {[%clk 0:02:49.1]} 12... f6
{[%clk 0:01:56.3]} 13. h3 {[%clk 0:02:43.3]} 13... g5 {[%clk 0:01:52.6]} 14. Bg3
{[%clk 0:02:40.6]} 14... Bg7 {[%clk 0:01:51.9]} 15. Nd2 {[%clk 0:02:38.7]} 15...
e5 {[%clk 0:01:48.8]} 16. Nb3 {[%clk 0:02:38.4]} 16... Ne7 {[%clk 0:01:42.4]}
17. Na5 {[%clk 0:02:36.4]} 17... Rb8 {[%clk 0:01:41.9]} 18. Bd3 {[%clk
0:02:34.1]} 18... Kf7 {[%clk 0:01:39.7]} 19. Kc2 {[%clk 0:02:33.6]} 19... Ke6
{[%clk 0:01:38]} 20. f4 {[%clk 0:02:23.3]} 20... gxf4 {[%clk 0:01:30.3]} 21.
exf4 {[%clk 0:02:22.7]} 21... e4 {[%clk 0:01:28.3]} 22. Be2 {[%clk 0:02:20.1]}
22... f5 {[%clk 0:01:27]} 23. Bf2 {[%clk 0:02:20.4]} 23... h5 {[%clk 0:01:24.4]}
24. g4 {[%clk 0:02:19.7]} 24... Nf6 {[%clk 0:01:17.9]} 25. g5 {[%clk 0:01:46.2]}
25... Ne8 {[%clk 0:01:16.5]} 26. Be3 {[%clk 0:01:41.7]} 26... Kd7 {[%clk
0:01:15.3]} 27. Kc3 {[%clk 0:01:32.9]} 27... Nc7 {[%clk 0:01:14.8]} 28. Nb3
{[%clk 0:01:29.2]} 28... Ne6 {[%clk 0:01:14.5]} 29. Na5 {[%clk 0:01:10.7]} 29...
Nc7 {[%clk 0:01:12.2]} 30. Rhg1 {[%clk 0:00:56.2]} 30... Ng6 {[%clk 0:01:10.9]}
31. Nb3 {[%clk 0:00:50.3]} 31... Ne6 {[%clk 0:01:10.3]} 32. Rgf1 {[%clk
0:00:49.3]} 32... Kc7 {[%clk 0:01:06.7]} 33. Na5 {[%clk 0:00:38.5]} 33... Kd7
{[%clk 0:01:06.5]} 34. Nxb7 {[%clk 0:00:29.3]} 34... Rxb7 {[%clk 0:01:05.8]} 35.
Rxa6 {[%clk 0:00:29.2]} 35... Rhb8 {[%clk 0:00:57.5]} 36. b5 {[%clk 0:00:28.8]}
36... Ne7 {[%clk 0:00:50.9]} 37. b4 {[%clk 0:00:22.4]} 37... cxb5 {[%clk
0:00:42.1]} 38. Rd6+ {[%clk 0:00:21]} 38... Ke8 {[%clk 0:00:38.6]} 39. Rxe6
{[%clk 0:00:21.3]} 39... Kf7 {[%clk 0:00:39.5]} 40. Rd6 {[%clk 0:00:20.7]} 40...
h4 {[%clk 0:00:37.5]} 41. Bh5+ {[%clk 0:00:20.4]} 41... Kf8 {[%clk 0:00:36.1]}
42. Ra1 {[%clk 0:00:20.9]} 42... Rc8 {[%clk 0:00:31.6]} 43. Kd2 {[%clk
0:00:20.4]} 43... Kg8 {[%clk 0:00:27.2]} 44. Raa6 {[%clk 0:00:19.5]} 44... Rcb8
{[%clk 0:00:24.8]} 45. Bf2 {[%clk 0:00:19.2]} 45... Rc8 {[%clk 0:00:20.3]} 46.
Ke3 {[%clk 0:00:19.6]} 46... Rbc7 {[%clk 0:00:17.6]} 47. Bxh4 {[%clk 0:00:18.1]}
47... Nc6 {[%clk 0:00:17.8]} 48. Rdxc6 {[%clk 0:00:17.8]} 48... Rxc6 {[%clk
0:00:17.8]} 49. Ra7 {[%clk 0:00:17.7]} 49... R6c7 {[%clk 0:00:16.9]} 50. Ra6
{[%clk 0:00:17.7]} 50... Rc6 {[%clk 0:00:17.2]} 51. Ra5 {[%clk 0:00:18.2]} 51...
Rb8 {[%clk 0:00:16.8]} 52. Be2 {[%clk 0:00:18.3]} 52... Kh7 {[%clk 0:00:16.8]}
53. Bg3 {[%clk 0:00:18.2]} 53... Rc7 {[%clk 0:00:16]} 54. h4 {[%clk 0:00:18.7]}
54... Rcb7 {[%clk 0:00:16.2]} 55. h5 {[%clk 0:00:19.1]} 55... Bf8 {[%clk
0:00:16.3]} 56. Bd1 {[%clk 0:00:19.4]} 56... Bg7 {[%clk 0:00:14.5]} 57. Bb3
{[%clk 0:00:20]} 57... Rd8 {[%clk 0:00:13.5]} 58. Bh4 {[%clk 0:00:20.4]} 58...
Kg8 {[%clk 0:00:12.8]} 59. g6 {[%clk 0:00:20.2]} 59... Rdd7 {[%clk 0:00:12.9]}
60. Bg5 {[%clk 0:00:20.5]} 60... Bf8 {[%clk 0:00:13]} 61. Ra8 {[%clk 0:00:20.4]}
61... Ra7 {[%clk 0:00:07.6]} 62. Rb8 {[%clk 0:00:20]} 62... Ra3 {[%clk
0:00:07.1]} 63. h6 {[%clk 0:00:17.9]} 63... Rxb3+ {[%clk 0:00:07.4]} 64. Kd2
{[%clk 0:00:18.8]} 64... Rd3+ {[%clk 0:00:07]} 65. Ke2 {[%clk 0:00:18.5]} 65...
Rxd4 {[%clk 0:00:06.6]} 66. Bf6 {[%clk 0:00:18.9]} 66... Rxb4 {[%clk 0:00:05.6]}
67. h7+ {[%clk 0:00:19.3]} 67... Rxh7 {[%clk 0:00:04.1]} 68. Rxf8+ {[%clk
0:00:20]} 68... Kxf8 {[%clk 0:00:04.1]} 69. gxh7 {[%clk 0:00:20.9]} 69... Rb2+
{[%clk 0:00:03.9]} 70. Bxb2 {[%clk 0:00:21]} 1-0

[Event "*** Titled Tuesday Blitz"]
[Site "Chess.com"]
[Date "2020.05.26"]
[Round "3"]
[White "GMNickPert"]
[Black "Koksik_13"]
[Result "0-1"]
[WhiteElo "2722"]
[BlackElo "2547"]
[TimeControl "180+1"]
[EndTime "10:29:10 PDT"]
[Termination "Koksik_13 won on time"]

1. d4 {[%clk 0:03:00.9]} 1... e6 {[%clk 0:03:00.1]} 2. c4 {[%clk 0:03:00.2]}
2... d5 {[%clk 0:03:00.6]} 3. Nf3 {[%clk 0:02:59.1]} 3... a6 {[%clk 0:03:01]} 4.
cxd5 {[%clk 0:02:57]} 4... exd5 {[%clk 0:03:01.9]} 5. Nc3 {[%clk 0:02:57.5]}
5... Nf6 {[%clk 0:03:01.9]} 6. Bf4 {[%clk 0:02:57.6]} 6... c6 {[%clk 0:03:01.8]}
7. e3 {[%clk 0:02:57.9]} 7... Bd6 {[%clk 0:03:02.3]} 8. Ne5 {[%clk 0:02:55.6]}
8... O-O {[%clk 0:03:01.3]} 9. Bd3 {[%clk 0:02:55.2]} 9... Qe7 {[%clk
0:03:00.2]} 10. O-O {[%clk 0:02:51.8]} 10... Nbd7 {[%clk 0:03:00]} 11. Nxd7
{[%clk 0:02:47.5]} 11... Bxd7 {[%clk 0:03:00.9]} 12. Bxd6 {[%clk 0:02:46.6]}
12... Qxd6 {[%clk 0:03:01.8]} 13. Rb1 {[%clk 0:02:44.8]} 13... Ng4 {[%clk
0:03:00.7]} 14. g3 {[%clk 0:02:20.5]} 14... Qh6 {[%clk 0:03:00.6]} 15. h4 {[%clk
0:02:19.5]} 15... g5 {[%clk 0:02:42.2]} 16. Be2 {[%clk 0:02:18.9]} 16... f5
{[%clk 0:02:42.6]} 17. Bxg4 {[%clk 0:01:44.6]} 17... fxg4 {[%clk 0:02:43.5]} 18.
hxg5 {[%clk 0:01:43.7]} 18... Qxg5 {[%clk 0:02:44.4]} 19. Ne2 {[%clk 0:01:42.1]}
19... Bf5 {[%clk 0:02:43.7]} 20. Nf4 {[%clk 0:01:07.1]} 20... Be4 {[%clk
0:02:43.7]} 21. f3 {[%clk 0:00:42.9]} 21... gxf3 {[%clk 0:02:32.5]} 22. Kf2
{[%clk 0:00:41.4]} 22... Bxb1 {[%clk 0:02:28.2]} 23. Qxb1 {[%clk 0:00:42.3]}
23... Rae8 {[%clk 0:02:21]} 24. Rh1 {[%clk 0:00:39.8]} 24... Qf5 {[%clk
0:02:21.3]} 25. Qxf5 {[%clk 0:00:37.1]} 25... Rxf5 {[%clk 0:02:20.5]} 26. Kxf3
{[%clk 0:00:37.5]} 26... Rf7 {[%clk 0:02:09.6]} 27. Rh4 {[%clk 0:00:33.2]} 27...
Rfe7 {[%clk 0:02:06.8]} 28. Ng2 {[%clk 0:00:33.2]} 28... Re4 {[%clk 0:02:04]}
29. Rh5 {[%clk 0:00:33.2]} 29... Kg7 {[%clk 0:02:01.8]} 30. b4 {[%clk
0:00:28.2]} 30... Kg6 {[%clk 0:01:57.9]} 31. g4 {[%clk 0:00:26]} 31... h6 {[%clk
0:01:46.2]} 32. Nh4+ {[%clk 0:00:25.8]} 32... Kh7 {[%clk 0:01:17.1]} 33. Nf5
{[%clk 0:00:25.8]} 33... R4e6 {[%clk 0:01:16.1]} 34. a4 {[%clk 0:00:25.5]} 34...
a5 {[%clk 0:01:06.8]} 35. bxa5 {[%clk 0:00:23.5]} 35... Ra8 {[%clk 0:01:05.9]}
36. Rh1 {[%clk 0:00:19.1]} 36... Rxa5 {[%clk 0:01:01.3]} 37. g5 {[%clk
0:00:19.6]} 37... Rxa4 {[%clk 0:00:54.3]} 38. gxh6 {[%clk 0:00:18.5]} 38... Rf6
{[%clk 0:00:51.2]} 39. Kf4 {[%clk 0:00:18.4]} 39... Ra8 {[%clk 0:00:34.5]} 40.
Ke5 {[%clk 0:00:18]} 40... Rg6 {[%clk 0:00:34.5]} 41. Rb1 {[%clk 0:00:15.6]}
41... Re8+ {[%clk 0:00:33.7]} 42. Kf4 {[%clk 0:00:15.2]} 42... b5 {[%clk
0:00:27.9]} 43. Ra1 {[%clk 0:00:13.7]} 43... Re4+ {[%clk 0:00:10.5]} 44. Kf3
{[%clk 0:00:13.7]} 44... Rf6 {[%clk 0:00:11.4]} 45. Ra7+ {[%clk 0:00:14]} 45...
Kg6 {[%clk 0:00:11.9]} 46. Rg7+ {[%clk 0:00:09.8]} 46... Kxf5 {[%clk 0:00:10.6]}
47. h7 {[%clk 0:00:10.1]} 47... Rh4 {[%clk 0:00:10.3]} 48. Re7 {[%clk
0:00:06.8]} 48... Rfh6 {[%clk 0:00:09.6]} 49. Rc7 {[%clk 0:00:05]} 49... Rh3+
{[%clk 0:00:09.3]} 50. Ke2 {[%clk 0:00:04.5]} 50... Rxh7 {[%clk 0:00:07.2]} 51.
Rxc6 {[%clk 0:00:03.8]} 51... b4 {[%clk 0:00:07.3]} 52. Rb6 {[%clk 0:00:03.9]}
52... b3 {[%clk 0:00:07.7]} 53. Rxb3 {[%clk 0:00:03.6]} 53... Ke4 {[%clk
0:00:08.1]} 54. Rb8 {[%clk 0:00:02.3]} 54... Rh2+ {[%clk 0:00:09]} 55. Kd1
{[%clk 0:00:01.7]} 55... Kd3 {[%clk 0:00:09.3]} 0-1

[Event "*** Titled Tuesday Blitz"]
[Site "Chess.com"]
[Date "2020.05.26"]
[Round "3"]
[White "Roenko_Artur"]
[Black "Machidon"]
[Result "0-1"]
[WhiteElo "2298"]
[BlackElo "2511"]
[TimeControl "180+1"]
[EndTime "10:29:11 PDT"]
[Termination "Machidon won on time"]

1. e4 {[%clk 0:03:00.9]} 1... c6 {[%clk 0:03:00.1]} 2. d4 {[%clk 0:03:00.3]}
2... d5 {[%clk 0:03:01]} 3. exd5 {[%clk 0:03:01.2]} 3... cxd5 {[%clk 0:03:01.9]}
4. Bd3 {[%clk 0:03:01.2]} 4... Nc6 {[%clk 0:03:02.1]} 5. c3 {[%clk 0:03:00.8]}
5... Nf6 {[%clk 0:03:02.6]} 6. Bf4 {[%clk 0:02:58]} 6... Bg4 {[%clk 0:03:03]} 7.
Qb3 {[%clk 0:02:57.4]} 7... Qd7 {[%clk 0:03:03.4]} 8. Nd2 {[%clk 0:02:53.8]}
8... e6 {[%clk 0:03:03.5]} 9. Ngf3 {[%clk 0:02:53.2]} 9... Bd6 {[%clk 0:03:04]}
10. Ne5 {[%clk 0:02:53.1]} 10... Qc7 {[%clk 0:03:03.5]} 11. O-O {[%clk
0:02:16.2]} 11... O-O {[%clk 0:02:45]} 12. Nxg4 {[%clk 0:02:12.6]} 12... Bxf4
{[%clk 0:02:29.7]} 13. Nxf6+ {[%clk 0:02:10.6]} 13... gxf6 {[%clk 0:02:30.6]}
14. Nf3 {[%clk 0:02:10.8]} 14... Kh8 {[%clk 0:02:28.7]} 15. Qc2 {[%clk
0:01:57.1]} 15... f5 {[%clk 0:02:28.2]} 16. Qe2 {[%clk 0:01:52.8]} 16... Rg8
{[%clk 0:02:23.8]} 17. Kh1 {[%clk 0:01:36]} 17... Rg7 {[%clk 0:02:13.3]} 18. Bb5
{[%clk 0:01:30.4]} 18... Ne7 {[%clk 0:01:53.2]} 19. Ne5 {[%clk 0:00:59.2]} 19...
Bxe5 {[%clk 0:01:34.6]} 20. Qxe5 {[%clk 0:00:44]} 20... Qxe5 {[%clk 0:01:33.8]}
21. dxe5 {[%clk 0:00:44.9]} 21... a6 {[%clk 0:01:34.1]} 22. Be2 {[%clk 0:00:38]}
22... Rc8 {[%clk 0:01:30]} 23. f4 {[%clk 0:00:36.4]} 23... Rgg8 {[%clk
0:01:25.4]} 24. Rfd1 {[%clk 0:00:34]} 24... Rc7 {[%clk 0:01:24.5]} 25. g3 {[%clk
0:00:28.8]} 25... Kg7 {[%clk 0:01:21.6]} 26. Kg2 {[%clk 0:00:28.6]} 26... Rgc8
{[%clk 0:01:21.1]} 27. Kf2 {[%clk 0:00:28.6]} 27... Nc6 {[%clk 0:01:20]} 28. Ke3
{[%clk 0:00:27]} 28... Kf8 {[%clk 0:01:15.4]} 29. h3 {[%clk 0:00:22.4]} 29...
d4+ {[%clk 0:00:28.4]} 30. cxd4 {[%clk 0:00:19.8]} 30... Nb4 {[%clk 0:00:29]}
31. Bd3 {[%clk 0:00:15.5]} 31... Nc2+ {[%clk 0:00:21.5]} 32. Bxc2 {[%clk
0:00:14.8]} 32... Rxc2 {[%clk 0:00:22.4]} 33. Rd2 {[%clk 0:00:14.9]} 33... Rc1
{[%clk 0:00:22.4]} 34. Rxc1 {[%clk 0:00:14.6]} 34... Rxc1 {[%clk 0:00:23.3]} 35.
g4 {[%clk 0:00:13.2]} 35... Rh1 {[%clk 0:00:16.9]} 36. gxf5 {[%clk 0:00:13.2]}
36... exf5 {[%clk 0:00:14.7]} 37. d5 {[%clk 0:00:11.3]} 37... Rxh3+ {[%clk
0:00:15.1]} 38. Kd4 {[%clk 0:00:11.4]} 38... Rf3 {[%clk 0:00:13.7]} 39. d6
{[%clk 0:00:09.9]} 39... Rxf4+ {[%clk 0:00:13.4]} 40. Kc5 {[%clk 0:00:10]} 40...
Ke8 {[%clk 0:00:11.7]} 41. Kb6 {[%clk 0:00:08.9]} 41... Rb4+ {[%clk 0:00:10.7]}
42. Kc7 {[%clk 0:00:09]} 42... Rc4+ {[%clk 0:00:10.9]} 43. Kxb7 {[%clk
0:00:09.2]} 43... a5 {[%clk 0:00:10.2]} 44. a3 {[%clk 0:00:06]} 44... a4 {[%clk
0:00:08.8]} 45. Rd5 {[%clk 0:00:05.8]} 45... Kd7 {[%clk 0:00:08.2]} 46. Kb6
{[%clk 0:00:04.5]} 46... h5 {[%clk 0:00:07.8]} 47. Rd2 {[%clk 0:00:03.3]} 47...
h4 {[%clk 0:00:07.5]} 48. Rf2 {[%clk 0:00:03.4]} 48... Ke6 {[%clk 0:00:06.2]}
49. Rd2 {[%clk 0:00:02.7]} 49... Kd7 {[%clk 0:00:05.4]} 50. Rf2 {[%clk
0:00:03.1]} 50... f4 {[%clk 0:00:05.9]} 51. Rf3 {[%clk 0:00:03.1]} 51... Re4
{[%clk 0:00:05.2]} 52. Rh3 {[%clk 0:00:03.2]} 52... Rxe5 {[%clk 0:00:05.5]} 53.
Rxh4 {[%clk 0:00:03.7]} 53... Rf5 {[%clk 0:00:05.7]} 54. Rh3 {[%clk 0:00:04.1]}
54... f3 {[%clk 0:00:06]} 55. Rh1 {[%clk 0:00:03.8]} 55... f2 {[%clk 0:00:06.4]}
56. Rf1 {[%clk 0:00:04.1]} 56... Kxd6 {[%clk 0:00:07.3]} 57. Ka6 {[%clk
0:00:03.9]} 57... Kc5 {[%clk 0:00:07.5]} 58. Ka5 {[%clk 0:00:04]} 58... Rf4
{[%clk 0:00:08]} 59. Rc1+ {[%clk 0:00:02.9]} 59... Kd4 {[%clk 0:00:08.2]} 60.
Rf1 {[%clk 0:00:03.5]} 60... Kd3 {[%clk 0:00:08.7]} 61. b4 {[%clk 0:00:01.9]}
61... axb3 {[%clk 0:00:09.6]} 62. Kb5 {[%clk 0:00:01.6]} 62... b2 {[%clk
0:00:10]} 63. a4 {[%clk 0:00:02]} 63... Ke2 {[%clk 0:00:10.3]} 64. Rb1 {[%clk
0:00:01.8]} 64... f1=Q {[%clk 0:00:10.5]} 0-1